[Event "Latvijas 2022. gada jauniešu čempionāta fināls"]
[Site "Riga, Latvia"]
[Date "2022.06.14"]
[Round "4.23"]
[White "Sestakovs, Maksims"]
[Black "Stinka, Gustavs"]
[Result "0-1"]
[TimeControl "3600+30"]
[WhiteElo "1138"]
[BlackElo "1086"]

1. e4 {[%clk 01:00:57]} {[%emt 00:00:02]} e5 {[%clk 01:00:54]} {[%emt
00:00:06]} 2. Nf3 {[%clk 01:01:19]} {[%emt 00:00:08]} Nc6 {[%clk 01:01:12]}
{[%emt 00:00:10]} 3. Bc4 {[%clk 01:01:12]} {[%emt 00:00:39]} Bc5 {[%clk
01:01:31]} {[%emt 00:00:11]} 4. O-O {[%clk 01:01:05]} {[%emt 00:00:36]} Nf6
{[%clk 01:01:51]} {[%emt 00:00:10]} 5. Ng5 {[%clk 01:00:52]} {[%emt 00:00:44]}
O-O {[%clk 01:02:00]} {[%emt 00:00:21]} 6. Nc3 {[%clk 01:01:02]} {[%emt
00:00:21]} h6 {[%clk 01:02:12]} {[%emt 00:00:17]} 7. Nf3 {[%clk 01:01:07]}
{[%emt 00:00:24]} d6 {[%clk 01:02:12]} {[%emt 00:00:31]} 8. a3 {[%clk
01:00:56]} {[%emt 00:00:41]} Bg4 {[%clk 01:02:18]} {[%emt 00:00:23]} 9. Be2
{[%clk 01:01:20]} {[%emt 00:00:07]} Bxf3 {[%clk 01:01:33]} {[%emt 00:01:15]} 10.
Bxf3 {[%clk 01:01:27]} {[%emt 00:00:22]} Nd4 {[%clk 01:01:53]} {[%emt
00:00:10]} 11. b4 {[%clk 01:01:28]} {[%emt 00:00:30]} Nxf3+ {[%clk 01:02:05]}
{[%emt 00:00:17]} 12. Qxf3 {[%clk 01:01:40]} {[%emt 00:00:17]} Bd4 {[%clk
01:02:29]} {[%emt 00:00:08]} 13. Bb2 {[%clk 01:01:48]} {[%emt 00:00:22]} Qd7
{[%clk 01:01:28]} {[%emt 00:01:31]} 14. Rab1 {[%clk 01:01:40]} {[%emt
00:00:38]} c6 {[%clk 01:01:24]} {[%emt 00:00:33]} 15. Rfe1 {[%clk 01:01:18]}
{[%emt 00:00:53]} Ng4 {[%clk 01:01:21]} {[%emt 00:00:30]} 16. Re2 {[%clk
00:59:55]} {[%emt 00:01:56]} f5 {[%clk 01:00:43]} {[%emt 00:01:07]} 17. Nd1
{[%clk 00:59:12]} {[%emt 00:01:14]} fxe4 {[%clk 00:59:25]} {[%emt 00:01:47]} 18.
Qxe4 {[%clk 00:59:00]} {[%emt 00:00:40]} Rf4 {[%clk 00:51:42]} {[%emt
00:08:16]} 19. Qd3 {[%clk 00:58:42]} {[%emt 00:00:48]} Bxb2 {[%clk 00:47:39]}
{[%emt 00:04:34]} 20. Rxb2 {[%clk 00:58:31]} {[%emt 00:00:38]} Raf8 {[%clk
00:47:25]} {[%emt 00:00:46]} 21. Qb3+ {[%clk 00:57:36]} {[%emt 00:01:24]} d5
{[%clk 00:47:18]} {[%emt 00:00:37]} 22. f3 {[%clk 00:57:43]} {[%emt 00:00:23]}
e4 {[%clk 00:46:38]} {[%emt 00:01:12]} 23. Ne3 {[%clk 00:56:10]} {[%emt
00:02:03]} exf3 {[%clk 00:46:28]} {[%emt 00:00:39]} 24. gxf3 {[%clk 00:53:55]}
{[%emt 00:02:41]} Rxf3 {[%clk 00:46:27]} {[%emt 00:00:35]} 25. Rb1 {[%clk
00:53:52]} {[%emt 00:00:33]} Nxe3 {[%clk 00:45:45]} {[%emt 00:01:11]} 26. dxe3
{[%clk 00:53:39]} {[%emt 00:00:41]} Qh3 {[%clk 00:44:03]} {[%emt 00:02:14]} 27.
Rg2 {[%clk 00:48:36]} {[%emt 00:05:34]} Rxe3 {[%clk 00:43:26]} {[%emt
00:01:07]} 28. Qb2 {[%clk 00:48:41]} {[%emt 00:00:25]} Rf7 {[%clk 00:43:40]}
{[%emt 00:00:15]} 29. b5 {[%clk 00:46:15]} {[%emt 00:02:58]} Qh4 {[%clk
00:43:45]} {[%emt 00:00:22]} 30. Qc1 {[%clk 00:45:13]} {[%emt 00:01:33]} Qd4
{[%clk 00:42:41]} {[%emt 00:01:35]} 31. Kh1 {[%clk 00:45:04]} {[%emt 00:00:39]}
Qe4 {[%clk 00:42:17]} {[%emt 00:00:52]} 32. bxc6 {[%clk 00:39:41]} {[%emt
00:05:55]} Re2 {[%clk 00:42:19]} {[%emt 00:00:28]} 33. Qg1 {[%clk 00:37:40]}
{[%emt 00:02:31]} bxc6 {[%clk 00:42:29]} {[%emt 00:00:21]} 34. c4 {[%clk
00:19:03]} {[%emt 00:19:07]} Rff2 {[%clk 00:42:19]} {[%emt 00:00:36]} 35. Rb8+
{[%clk 00:18:30]} {[%emt 00:01:06]} Kh7 {[%clk 00:42:25]} {[%emt 00:00:24]} 36.
Qb1 {[%clk 00:18:42]} {[%emt 00:00:17]} Rc2 {[%clk 00:42:39]} {[%emt 00:00:16]}
37. Qg1 {[%clk 00:15:47]} {[%emt 00:03:25]} Rxg2 {[%clk 00:42:54]} {[%emt
00:00:16]} 38. Rb1 {[%clk 00:15:03]} {[%emt 00:01:14]} Rg5+ {[%clk 00:42:49]}
{[%emt 00:00:33]} 0-1

[Event "Latvijas 2022. gada jauniešu čempionāta fināls"]
[Site "Riga, Latvia"]
[Date "2022.06.14"]
[Round "4.24"]
[White "Sterns, Tomass Kristians"]
[Black "Krastins, Arturs"]
[Result "1-0"]
[TimeControl "3600+30"]
[WhiteElo "1431"]
[BlackElo "1506"]

1. d4 {[%clk 01:00:57]} {[%emt 00:00:02]} d5 {[%clk 01:00:49]} {[%emt
00:00:12]} 2. c4 {[%clk 01:01:18]} {[%emt 00:00:08]} Bf5 {[%clk 01:01:14]}
{[%emt 00:00:05]} 3. Nc3 {[%clk 01:01:33]} {[%emt 00:00:15]} e6 {[%clk
01:01:35]} {[%emt 00:00:09]} 4. e3 {[%clk 01:01:37]} {[%emt 00:00:26]} c6
{[%clk 01:01:26]} {[%emt 00:00:40]} 5. Nf3 {[%clk 01:01:22]} {[%emt 00:00:44]}
Nd7 {[%clk 01:01:15]} {[%emt 00:00:41]} 6. Bd3 {[%clk 01:00:55]} {[%emt
00:00:57]} dxc4 {[%clk 00:59:42]} {[%emt 00:02:04]} 7. Bxc4 {[%clk 01:00:52]}
{[%emt 00:00:32]} Ngf6 {[%clk 00:59:26]} {[%emt 00:00:46]} 8. Bd3 {[%clk
00:59:33]} {[%emt 00:01:49]} Bxd3 {[%clk 00:59:26]} {[%emt 00:00:30]} 9. Qxd3
{[%clk 00:59:54]} {[%emt 00:00:08]} c5 {[%clk 00:59:17]} {[%emt 00:00:40]} 10.
O-O {[%clk 00:59:09]} {[%emt 00:01:15]} a6 {[%clk 00:58:39]} {[%emt 00:01:08]}
11. Rd1 {[%clk 00:55:10]} {[%emt 00:04:28]} cxd4 {[%clk 00:58:38]} {[%emt
00:00:32]} 12. exd4 {[%clk 00:54:56]} {[%emt 00:00:44]} Nb6 {[%clk 00:57:32]}
{[%emt 00:01:37]} 13. Bg5 {[%clk 00:53:52]} {[%emt 00:01:33]} Nbd5 {[%clk
00:57:38]} {[%emt 00:00:24]} 14. Rac1 {[%clk 00:52:32]} {[%emt 00:01:50]} Be7
{[%clk 00:56:46]} {[%emt 00:01:21]} 15. Na4 {[%clk 00:48:33]} {[%emt 00:04:30]}
h6 {[%clk 00:50:49]} {[%emt 00:06:28]} 16. Bh4 {[%clk 00:48:06]} {[%emt
00:00:57]} O-O {[%clk 00:45:51]} {[%emt 00:05:27]} 17. Nc5 {[%clk 00:44:46]}
{[%emt 00:03:49]} Bxc5 {[%clk 00:33:59]} {[%emt 00:12:23]} 18. dxc5 {[%clk
00:44:48]} {[%emt 00:00:28]} Rc8 {[%clk 00:28:04]} {[%emt 00:06:23]} 19. Bg3
{[%clk 00:42:14]} {[%emt 00:03:05]} Nd7 {[%clk 00:25:40]} {[%emt 00:02:55]} 20.
Bd6 {[%clk 00:33:59]} {[%emt 00:08:45]} Re8 {[%clk 00:25:48]} {[%emt 00:00:18]}
21. a3 {[%clk 00:34:08]} {[%emt 00:00:26]} a5 {[%clk 00:19:04]} {[%emt
00:07:14]} 22. Qb5 {[%clk 00:31:44]} {[%emt 00:02:53]} b6 {[%clk 00:19:17]}
{[%emt 00:00:17]} 23. b4 {[%clk 00:27:07]} {[%emt 00:05:07]} axb4 {[%clk
00:17:20]} {[%emt 00:02:27]} 24. axb4 {[%clk 00:27:17]} {[%emt 00:00:21]} N7f6
{[%clk 00:15:38]} {[%emt 00:02:11]} 25. Be5 {[%clk 00:22:32]} {[%emt 00:05:15]}
Ne4 {[%clk 00:14:36]} {[%emt 00:01:29]} 26. Qc4 {[%clk 00:20:53]} {[%emt
00:02:12]} Nef6 {[%clk 00:11:27]} {[%emt 00:03:39]} 27. c6 {[%clk 00:19:51]}
{[%emt 00:01:32]} h5 {[%clk 00:10:38]} {[%emt 00:01:19]} 28. h3 {[%clk
00:18:29]} {[%emt 00:01:52]} Qe7 {[%clk 00:11:00]} {[%emt 00:00:08]} 29. b5
{[%clk 00:17:15]} {[%emt 00:01:44]} Red8 {[%clk 00:11:12]} {[%emt 00:00:15]} 30.
Rd2 {[%clk 00:15:50]} {[%emt 00:01:57]} Ne8 {[%clk 00:11:16]} {[%emt 00:00:21]}
31. Ra1 {[%clk 00:14:17]} {[%emt 00:02:09]} Ne3 {[%clk 00:09:04]} {[%emt
00:02:42]} 32. fxe3 {[%clk 00:13:14]} {[%emt 00:01:33]} Rxd2 {[%clk 00:09:18]}
{[%emt 00:00:17]} 33. Nxd2 {[%clk 00:13:31]} {[%emt 00:00:12]} Rd8 {[%clk
00:09:38]} {[%emt 00:00:10]} 34. Nf3 {[%clk 00:13:13]} {[%emt 00:00:47]} Rd5
{[%clk 00:09:26]} {[%emt 00:00:43]} 35. Bd4 {[%clk 00:12:42]} {[%emt 00:01:00]}
Nd6 {[%clk 00:09:34]} {[%emt 00:00:23]} 36. Ra8+ {[%clk 00:12:23]} {[%emt
00:00:48]} Kh7 {[%clk 00:09:47]} {[%emt 00:00:17]} 37. Qc2+ {[%clk 00:12:32]}
{[%emt 00:00:22]} f5 {[%clk 00:09:58]} {[%emt 00:00:19]} 38. c7 {[%clk
00:12:20]} {[%emt 00:00:41]} e5 {[%clk 00:10:10]} {[%emt 00:00:19]} 39. c8=Q
{[%clk 00:11:28]} {[%emt 00:01:22]} Nxc8 {[%clk 00:10:24]} {[%emt 00:00:15]} 40.
Qxf5+ {[%clk 00:11:07]} {[%emt 00:00:51]} Kh6 {[%clk 00:10:10]} {[%emt
00:00:45]} 41. Rxc8 {[%clk 00:11:02]} {[%emt 00:00:35]} g6 {[%clk 00:09:48]}
{[%emt 00:00:51]} 42. Qf8+ {[%clk 00:10:33]} {[%emt 00:01:00]} Qxf8 {[%clk
00:10:12]} {[%emt 00:00:06]} 43. Rxf8 {[%clk 00:10:57]} {[%emt 00:00:06]} exd4
{[%clk 00:10:40]} {[%emt 00:00:02]} 44. Nxd4 {[%clk 00:10:49]} {[%emt
00:00:38]} Kg7 {[%clk 00:11:06]} {[%emt 00:00:04]} 45. Rb8 {[%clk 00:10:29]}
{[%emt 00:00:50]} Rd6 {[%clk 00:10:44]} {[%emt 00:00:52]} 46. Nc6 {[%clk
00:10:24]} {[%emt 00:00:34]} Kf7 {[%clk 00:11:05]} {[%emt 00:00:08]} 47. Rxb6
{[%clk 00:10:43]} {[%emt 00:00:13]} Ke8 {[%clk 00:11:07]} {[%emt 00:00:17]} 48.
Rb8+ {[%clk 00:10:47]} {[%emt 00:00:37]} Kd7 {[%clk 00:11:26]} {[%emt
00:00:09]} 49. Rd8+ {[%clk 00:11:05]} {[%emt 00:00:14]} Kc7 {[%clk 00:11:46]}
{[%emt 00:00:10]} 50. Rxd6 {[%clk 00:11:30]} {[%emt 00:00:05]} Kxd6 {[%clk
00:12:11]} {[%emt 00:00:05]} 51. Kf2 {[%clk 00:11:39]} {[%emt 00:00:20]} g5
{[%clk 00:12:35]} {[%emt 00:00:07]} 52. Kf3 {[%clk 00:12:02]} {[%emt 00:00:08]}
Kd5 {[%clk 00:12:58]} {[%emt 00:00:06]} 53. Nd4 {[%clk 00:12:03]} {[%emt
00:00:29]} Ke5 {[%clk 00:12:51]} {[%emt 00:00:37]} 54. b6 {[%clk 00:11:41]}
{[%emt 00:00:52]} Kd6 {[%clk 00:13:13]} {[%emt 00:00:08]} 55. Ke4 {[%clk
00:11:59]} {[%emt 00:00:12]} 1-0

[Event "Latvijas 2022. gada jauniešu čempionāta fināls"]
[Site "Riga, Latvia"]
[Date "2022.06.14"]
[Round "5.1"]
[White "Paikens, Reinis"]
[Black "Vingris, Mikelis"]
[Result "1/2-1/2"]
[TimeControl "3600+30"]
[WhiteElo "1534"]
[BlackElo "1781"]

1. e4 {[%clk 01:00:33]} {[%emt 00:00:26]} c5 {[%clk 01:00:56]} {[%emt
00:00:05]} 2. c3 {[%clk 01:00:51]} {[%emt 00:00:10]} Nf6 {[%clk 01:01:22]}
{[%emt 00:00:05]} 3. e5 {[%clk 01:00:14]} {[%emt 00:01:08]} Nd5 {[%clk
01:01:48]} {[%emt 00:00:04]} 4. d4 {[%clk 00:59:51]} {[%emt 00:00:52]} cxd4
{[%clk 01:02:10]} {[%emt 00:00:08]} 5. cxd4 {[%clk 00:59:01]} {[%emt 00:01:19]}
Nc6 {[%clk 01:02:25]} {[%emt 00:00:16]} 6. Nf3 {[%clk 00:57:45]} {[%emt
00:01:46]} d6 {[%clk 01:02:45]} {[%emt 00:00:10]} 7. exd6 {[%clk 00:55:28]}
{[%emt 00:02:47]} Qxd6 {[%clk 01:03:10]} {[%emt 00:00:05]} 8. Be2 {[%clk
00:55:08]} {[%emt 00:00:50]} g6 {[%clk 01:03:02]} {[%emt 00:00:38]} 9. O-O
{[%clk 00:54:53]} {[%emt 00:00:45]} Bg7 {[%clk 01:03:17]} {[%emt 00:00:15]} 10.
Nc3 {[%clk 00:54:59]} {[%emt 00:00:24]} O-O {[%clk 01:02:21]} {[%emt 00:01:24]}
11. Be3 {[%clk 00:44:20]} {[%emt 00:11:11]} Nxe3 {[%clk 00:56:36]} {[%emt
00:06:16]} 12. fxe3 {[%clk 00:44:04]} {[%emt 00:00:45]} Bh6 {[%clk 00:56:34]}
{[%emt 00:00:32]} 13. Kf2 {[%clk 00:40:44]} {[%emt 00:03:49]} Rd8 {[%clk
00:54:21]} {[%emt 00:02:44]} 14. Qb3 {[%clk 00:38:18]} {[%emt 00:02:56]} Bg4
{[%clk 00:38:51]} {[%emt 00:16:00]} 15. Ne4 {[%clk 00:31:22]} {[%emt 00:07:25]}
Qb4 {[%clk 00:36:38]} {[%emt 00:02:43]} 16. Bc4 {[%clk 00:25:00]} {[%emt
00:06:53]} Qxb3 {[%clk 00:32:00]} {[%emt 00:05:07]} 17. Bxb3 {[%clk 00:24:32]}
{[%emt 00:00:59]} Bxf3 {[%clk 00:26:12]} {[%emt 00:06:18]} 18. gxf3 {[%clk
00:21:51]} {[%emt 00:03:11]} Na5 {[%clk 00:23:11]} {[%emt 00:03:31]} 19. f4
{[%clk 00:19:05]} {[%emt 00:03:17]} Nxb3 {[%clk 00:22:24]} {[%emt 00:01:16]} 20.
axb3 {[%clk 00:18:42]} {[%emt 00:00:53]} a6 {[%emt 00:10:32]} 1/2-1/2

[Event "Latvijas 2022. gada jauniešu čempionāta fināls"]
[Site "Riga, Latvia"]
[Date "2022.06.14"]
[Round "5.2"]
[White "Tabors, Emils"]
[Black "Sokolovskis, Pavels"]
[Result "1/2-1/2"]
[TimeControl "3600+30"]
[WhiteElo "1813"]
[BlackElo "1572"]

1. d4 {[%clk 01:00:58]} {[%emt 00:00:02]} d5 {[%clk 01:00:53]} {[%emt
00:00:08]} 2. c4 {[%clk 01:01:22]} {[%emt 00:00:05]} e6 {[%clk 01:01:17]}
{[%emt 00:00:06]} 3. Nc3 {[%clk 01:01:47]} {[%emt 00:00:04]} a6 {[%clk
01:01:41]} {[%emt 00:00:06]} 4. cxd5 {[%clk 01:02:06]} {[%emt 00:00:12]} exd5
{[%clk 01:02:06]} {[%emt 00:00:05]} 5. Nf3 {[%clk 01:02:29]} {[%emt 00:00:07]}
Nf6 {[%clk 01:02:14]} {[%emt 00:00:22]} 6. Bg5 {[%clk 01:02:36]} {[%emt
00:00:22]} Be7 {[%clk 01:02:28]} {[%emt 00:00:17]} 7. e3 {[%clk 00:59:40]}
{[%emt 00:03:26]} Be6 {[%clk 01:01:10]} {[%emt 00:01:48]} 8. Bd3 {[%clk
00:59:18]} {[%emt 00:00:52]} O-O {[%clk 01:00:16]} {[%emt 00:01:25]} 9. O-O
{[%clk 00:59:30]} {[%emt 00:00:17]} h6 {[%clk 00:55:14]} {[%emt 00:05:32]} 10.
Bh4 {[%clk 00:59:44]} {[%emt 00:00:15]} Nh5 {[%clk 00:53:40]} {[%emt 00:02:05]}
11. Bxe7 {[%clk 01:00:00]} {[%emt 00:00:14]} Qxe7 {[%clk 00:54:06]} {[%emt
00:00:03]} 12. e4 {[%clk 00:53:30]} {[%emt 00:07:00]} c6 {[%clk 00:48:18]}
{[%emt 00:06:18]} 13. Re1 {[%clk 00:51:45]} {[%emt 00:02:16]} Nf4 {[%clk
00:41:47]} {[%emt 00:07:01]} 14. exd5 {[%clk 00:47:23]} {[%emt 00:04:52]} cxd5
{[%clk 00:41:39]} {[%emt 00:00:38]} 15. Bf1 {[%clk 00:47:06]} {[%emt 00:00:47]}
Qd6 {[%clk 00:41:04]} {[%emt 00:01:04]} 16. Ne2 {[%clk 00:46:08]} {[%emt
00:01:28]} Nxe2+ {[%clk 00:39:56]} {[%emt 00:01:38]} 17. Qxe2 {[%clk 00:46:20]}
{[%emt 00:00:18]} Nc6 {[%clk 00:40:01]} {[%emt 00:00:26]} 18. Qd2 {[%clk
00:41:13]} {[%emt 00:05:37]} Qb4 {[%clk 00:33:06]} {[%emt 00:07:24]} 19. Rad1
{[%clk 00:37:40]} {[%emt 00:04:03]} Bg4 {[%clk 00:26:27]} {[%emt 00:07:10]} 20.
Be2 {[%clk 00:33:23]} {[%emt 00:04:47]} Rfe8 {[%clk 00:25:54]} {[%emt
00:01:02]} 21. Qxb4 {[%clk 00:25:27]} {[%emt 00:08:25]} Nxb4 {[%clk 00:26:19]}
{[%emt 00:00:06]} 22. h3 {[%clk 00:25:44]} {[%emt 00:00:13]} Bf5 {[%clk
00:19:53]} {[%emt 00:06:55]} 23. Bf1 {[%clk 00:14:56]} {[%emt 00:11:19]} Nxa2
{[%clk 00:19:26]} {[%emt 00:00:57]} 24. Rxe8+ {[%clk 00:14:19]} {[%emt
00:01:07]} Rxe8 {[%clk 00:19:43]} {[%emt 00:00:13]} 25. Ra1 {[%clk 00:14:02]}
{[%emt 00:00:47]} Nb4 {[%clk 00:20:08]} {[%emt 00:00:06]} 26. Rc1 {[%clk
00:14:27]} {[%emt 00:00:05]} Nc6 {[%clk 00:20:12]} {[%emt 00:00:24]} 27. Bxa6
{[%clk 00:14:20]} {[%emt 00:00:38]} Rb8 {[%clk 00:16:29]} {[%emt 00:04:12]} 28.
Bxb7 {[%clk 00:13:05]} {[%emt 00:01:47]} Rxb7 {[%clk 00:16:52]} {[%emt
00:00:07]} 29. Rxc6 {[%clk 00:13:32]} {[%emt 00:00:03]} 1/2-1/2

[Event "Latvijas 2022. gada jauniešu čempionāta fināls"]
[Site "Riga, Latvia"]
[Date "2022.06.14"]
[Round "5.3"]
[White "Fridensteins-Bridins, Atis"]
[Black "Bogdanovics, Kirills"]
[Result "1-0"]
[TimeControl "3600+30"]
[WhiteElo "1704"]
[BlackElo "1785"]

1. d4 {[%clk 01:00:57]} {[%emt 00:00:02]} d5 {[%clk 01:00:56]} {[%emt
00:00:05]} 2. c4 {[%clk 01:01:06]} {[%emt 00:00:21]} c6 {[%clk 01:01:21]}
{[%emt 00:00:06]} 3. Nc3 {[%clk 01:01:31]} {[%emt 00:00:04]} Nf6 {[%clk
01:01:47]} {[%emt 00:00:04]} 4. Nf3 {[%clk 01:01:50]} {[%emt 00:00:10]} e6
{[%clk 01:02:11]} {[%emt 00:00:07]} 5. Bg5 {[%clk 01:01:23]} {[%emt 00:00:57]}
h6 {[%clk 01:02:36]} {[%emt 00:00:06]} 6. Bxf6 {[%clk 01:01:47]} {[%emt
00:00:05]} Qxf6 {[%clk 01:03:00]} {[%emt 00:00:05]} 7. e4 {[%clk 00:59:34]}
{[%emt 00:02:44]} dxe4 {[%clk 01:03:24]} {[%emt 00:00:07]} 8. Nxe4 {[%clk
00:59:51]} {[%emt 00:00:13]} Qf4 {[%clk 01:02:42]} {[%emt 00:01:12]} 9. Bd3
{[%clk 00:57:10]} {[%emt 00:03:10]} Bb4+ {[%clk 01:01:26]} {[%emt 00:01:47]} 10.
Kf1 {[%clk 00:57:09]} {[%emt 00:00:30]} Nd7 {[%clk 00:59:16]} {[%emt 00:02:41]}
11. g3 {[%clk 00:54:44]} {[%emt 00:02:54]} Qb8 {[%clk 00:59:11]} {[%emt
00:00:35]} 12. c5 {[%clk 00:52:09]} {[%emt 00:03:06]} Ba5 {[%clk 00:57:31]}
{[%emt 00:02:10]} 13. Nd6+ {[%clk 00:51:00]} {[%emt 00:01:38]} Kf8 {[%clk
00:57:54]} {[%emt 00:00:07]} 14. Nh4 {[%clk 00:41:21]} {[%emt 00:10:10]} Nf6
{[%clk 00:54:14]} {[%emt 00:04:10]} 15. Qf3 {[%clk 00:39:49]} {[%emt 00:02:01]}
Bc7 {[%clk 00:54:03]} {[%emt 00:00:41]} 16. Ne4 {[%clk 00:37:46]} {[%emt
00:02:32]} Nxe4 {[%clk 00:50:09]} {[%emt 00:04:25]} 17. Ng6+ {[%clk 00:36:02]}
{[%emt 00:02:14]} Ke8 {[%clk 00:50:25]} {[%emt 00:00:14]} 18. Bxe4 {[%clk
00:36:14]} {[%emt 00:00:18]} Rg8 {[%clk 00:49:23]} {[%emt 00:01:32]} 19. Re1
{[%clk 00:30:16]} {[%emt 00:06:27]} Bd7 {[%clk 00:45:37]} {[%emt 00:04:17]} 20.
d5 {[%clk 00:20:00]} {[%emt 00:10:47]} cxd5 {[%clk 00:46:04]} {[%emt 00:00:03]}
21. Bxd5 {[%clk 00:20:14]} {[%emt 00:00:16]} Qd8 {[%clk 00:45:51]} {[%emt
00:00:42]} 22. Bxb7 {[%clk 00:17:54]} {[%emt 00:02:50]} Rb8 {[%clk 00:44:14]}
{[%emt 00:02:07]} 23. Rd1 {[%clk 00:11:22]} {[%emt 00:07:02]} Qf6 {[%clk
00:43:12]} {[%emt 00:01:32]} 24. Qc6 {[%clk 00:10:42]} {[%emt 00:01:10]} Rd8
{[%clk 00:41:40]} {[%emt 00:02:02]} 25. Qxc7 {[%clk 00:10:56]} {[%emt
00:00:16]} fxg6 {[%clk 00:40:32]} {[%emt 00:01:38]} 26. c6 {[%clk 00:11:17]}
{[%emt 00:00:09]} Rf8 {[%clk 00:38:40]} {[%emt 00:02:22]} 27. cxd7+ {[%clk
00:11:13]} {[%emt 00:00:34]} Kf7 {[%clk 00:39:06]} {[%emt 00:00:04]} 28. Qf4
{[%clk 00:11:14]} {[%emt 00:00:28]} 1-0

[Event "Latvijas 2022. gada jauniešu čempionāta fināls"]
[Site "Riga, Latvia"]
[Date "2022.06.14"]
[Round "5.4"]
[White "Kazmerika, Anna"]
[Black "Lele, Emili"]
[Result "1-0"]
[TimeControl "3600+30"]
[WhiteElo "1657"]
[BlackElo "1233"]

1. d4 {[%clk 01:00:58]} {[%emt 00:00:01]} Nf6 {[%clk 01:00:25]} {[%emt
00:00:35]} 2. c4 {[%clk 01:01:21]} {[%emt 00:00:07]} e5 {[%clk 00:59:38]}
{[%emt 00:01:18]} 3. dxe5 {[%clk 00:59:29]} {[%emt 00:02:23]} Ng4 {[%clk
00:59:35]} {[%emt 00:00:32]} 4. e4 {[%clk 00:59:46]} {[%emt 00:00:13]} Nxe5
{[%clk 00:53:32]} {[%emt 00:06:32]} 5. f4 {[%clk 01:00:02]} {[%emt 00:00:14]}
Nec6 {[%clk 00:52:20]} {[%emt 00:01:43]} 6. Be3 {[%clk 00:57:23]} {[%emt
00:03:08]} b6 {[%clk 00:43:44]} {[%emt 00:09:07]} 7. a3 {[%clk 00:52:46]}
{[%emt 00:05:07]} a5 {[%clk 00:41:59]} {[%emt 00:02:15]} 8. Nc3 {[%clk
00:52:52]} {[%emt 00:00:24]} Bb7 {[%clk 00:38:47]} {[%emt 00:03:42]} 9. Nf3
{[%clk 00:53:09]} {[%emt 00:00:12]} d6 {[%clk 00:32:05]} {[%emt 00:07:12]} 10.
Bd3 {[%clk 00:52:32]} {[%emt 00:01:08]} Nd7 {[%clk 00:31:00]} {[%emt 00:01:35]}
11. O-O {[%clk 00:52:05]} {[%emt 00:00:56]} g6 {[%clk 00:24:05]} {[%emt
00:07:26]} 12. Rb1 {[%clk 00:45:02]} {[%emt 00:07:33]} Bg7 {[%clk 00:23:30]}
{[%emt 00:01:05]} 13. Nd5 {[%clk 00:38:59]} {[%emt 00:06:33]} Nf6 {[%clk
00:18:35]} {[%emt 00:05:25]} 14. h3 {[%clk 00:37:33]} {[%emt 00:01:56]} Ne7
{[%clk 00:16:00]} {[%emt 00:03:05]} 15. Bd4 {[%clk 00:27:26]} {[%emt 00:10:36]}
Nc6 {[%clk 00:13:09]} {[%emt 00:03:22]} 16. Bf2 {[%clk 00:20:27]} {[%emt
00:07:29]} Nxd5 {[%clk 00:11:54]} {[%emt 00:01:45]} 17. exd5 {[%clk 00:19:56]}
{[%emt 00:01:01]} Ne7 {[%clk 00:11:44]} {[%emt 00:00:39]} 18. Re1 {[%clk
00:15:03]} {[%emt 00:05:24]} O-O {[%clk 00:08:15]} {[%emt 00:03:59]} 19. Bh4
{[%clk 00:15:28]} {[%emt 00:00:04]} Re8 {[%clk 00:07:35]} {[%emt 00:01:10]} 20.
Bc2 {[%clk 00:14:11]} {[%emt 00:01:48]} c5 {[%clk 00:05:33]} {[%emt 00:02:32]}
21. Ba4 {[%clk 00:13:05]} {[%emt 00:01:36]} f6 {[%clk 00:04:43]} {[%emt
00:01:20]} 22. Bxe8 {[%clk 00:13:19]} {[%emt 00:00:16]} Qxe8 {[%clk 00:05:07]}
{[%emt 00:00:05]} 23. Qe2 {[%clk 00:13:29]} {[%emt 00:00:20]} Kf7 {[%clk
00:05:11]} {[%emt 00:00:27]} 24. Qe6+ {[%clk 00:13:38]} {[%emt 00:00:20]} Kf8
{[%clk 00:05:19]} {[%emt 00:00:22]} 25. Bxf6 {[%clk 00:13:54]} {[%emt
00:00:15]} Bxf6 {[%clk 00:05:20]} {[%emt 00:00:29]} 26. Qxf6+ {[%clk 00:14:01]}
{[%emt 00:00:22]} Qf7 {[%clk 00:05:36]} {[%emt 00:00:14]} 27. Qxd6 {[%clk
00:14:15]} {[%emt 00:00:17]} Re8 {[%clk 00:04:36]} {[%emt 00:01:30]} 28. Ng5
{[%clk 00:14:28]} {[%emt 00:00:17]} Qg8 {[%clk 00:04:05]} {[%emt 00:01:00]} 29.
Qf6+ {[%clk 00:14:48]} {[%emt 00:00:10]} Qf7 {[%clk 00:04:26]} {[%emt
00:00:09]} 30. Qxf7# {[%clk 00:15:09]} {[%emt 00:00:09]} 1-0